Cogmind - Beta 14 @@@ ROGUE MODE // 2024.12.30 @ 18:48:56 Player: Ty Result: Destroyed by S-10 Pest with Light Assault Rifle Performance ------------- Evolutions (1) 500 Regions Visited (4) 800 Robots Destroyed (34) 170 Value Destroyed (1015) 1015 Prototype IDs (0) 0 Alien Tech Used (0) 0 Bonus (8) 8 TOTAL SCORE: 2493 Bonus ------- High Alert Combat Kills 8 Cogmind --------- Core Integrity 0/400 Matter 261/300 Energy 125/125 System Corruption 0% Temperature Cool (0) Movement Core (250) Ox4 Location -9/Storage Parts ------- > --- POWER (1) -------- Light Ion Engine > --- PROPULSION (4) --- (None) > --- UTILITY (2) ------ Medium Storage Unit > --- WEAPON (2) ------- Small Laser Datajack > --- INVENTORY (10) --- Light Treads Improved Targeting Computer Improved Targeting Computer Beam Rifle Particle Gun Welding Torch Peak State ------------ > --- POWER ------------ Light Ion Engine > --- PROPULSION ------- Aluminum Leg Aluminum Leg Aluminum Leg > --- UTILITY ---------- Medium Storage Unit Small Battery > --- WEAPON ----------- Small Laser Beam Rifle > --- INVENTORY -------- Light Ion Engine Light Ion Engine Heat Sink Huge Storage Unit Particle Gun Light Assault Rifle Rocket Launcher Datajack [Rating: 10] Favorites ----------- Power Light Ion Engine Engine Light Ion Engine Propulsion Aluminum Leg Treads Light Treads Leg Aluminum Leg Wheel Compact Wheel Utility Small Battery Storage Small Battery Protection Hardened Light Armor Plating Weapon Small Laser Energy Gun Small Laser Ballistic Gun Light Assault Rifle Launcher Rocket Launcher Special Weapon Welding Torch Special Melee Weapon Datajack Build | -11 -10 -10 -9 -9 ------- Run | Yrd Mat Min Mat Sto Slots Evolved 2 | . . . 2 . Power . | . . . . . Propulsion 2 | . . . 2 . Utility . | . . . . . Weapon . | . . . . . Parts Attached 52 | 5 2 6 26 13 Power 9 | 1 . 2 4 2 Engine 9 | 1 . 2 4 2 Core . | . . . . . Reactor . | . . . . . Propulsion 11 | 2 . 1 6 2 Treads 2 | . . . . 2 Leg 8 | 2 . 1 5 . Wheel 1 | . . . 1 . Hover . | . . . . . Flight . | . . . . . Utility 10 | . 2 . 7 1 Device . | . . . . . Storage 8 | . 2 . 5 1 Processor . | . . . . . Hackware . | . . . . . Protection 2 | . . . 2 . Artifact . | . . . . . Weapon 22 | 2 . 3 9 8 Energy Gun 5 | 1 . 1 3 . Energy Cannon . | . . . . . Ballistic Gun 8 | 1 . 2 3 2 Ballistic Cannon . | . . . . . Launcher 4 | . . . 1 3 Special Weapon 1 | . . . . 1 Impact Weapon . | . . . . . Slashing Weapon . | . . . . . Piercing Weapon . | . . . . . Special Melee Weapon 4 | . . . 2 2 Unidentified Prototypes . | . . . . . Parts Lost 26 | . . 5 12 9 Power 6 | . . 1 3 2 Propulsion 9 | . . 2 4 3 Utility 2 | . . . 1 1 Weapon 9 | . . 2 4 3 Highest Loss Streak 5 | . . 3 3 5 To Critical Strikes 1 | . . . . 1 Average Slot Usage (%) 78 | . 85 95 78 59 Engine 10 | . 14 13 10 7 Treads 1 | . . . . 7 Leg 20 | . 28 24 24 6 Storage 18 | . 14 28 19 11 Protection 2 | . . . 2 6 Energy Gun 12 | . 14 13 11 14 Ballistic Gun 8 | . 14 13 9 . Peak Build Rating 10 | 5 7 7 10 10 Average Rating 7 | 3 6 6 8 7 On Entrance 5 | . 5 7 6 9 Naked Turns . | . . . . . Heaviest Build 23 | 7 13 13 22 23 Greatest Support 40 | 20 20 20 40 40 Greatest Overweight (x) 4 | . . 1 2 4 Average Overweight (x) . | . . . . 1 Largest Inventory Capacity 25 | 5 8 8 25 10 Average Capacity 8 | 5 5 8 9 10 Most Carried 10 | 5 6 8 10 10 Average Carried 6 | 2 3 4 8 8 Final Capacity 10 | 5 8 8 10 10 Final Carried 10 | 2 5 8 10 6 Class Distribution -------------------- 66% | Scavenger-Mutant 32% | Mutant Dominant Class ---------------- Mutant | -10/Materials Mutant | -10/Mines Scavenger-Mutant | -9/Materials Scavenger-Mutant | -9/Storage Resources | -11 -10 -10 -9 -9 ----------- Run | Yrd Mat Min Mat Sto Matter Collected 923 | 205 104 84 310 220 Remotely . | . . . . . Salvage Created 1248 | . 194 80 586 388 Parts 68 | . 6 4 35 23 Haulers Intercepted 1 | . . . . 1 Recyclers Shooed . | . . . . . Parts Field Recycled . | . . . . . Retrieved Matter . | . . . . . Parts Self-Destructed . | . . . . . Prevented . | . . . . . Kills | -11 -10 -10 -9 -9 ------- Run | Yrd Mat Min Mat Sto Combat Hostiles Destroyed 32 | . 3 6 13 10 Guns 28 | . 3 6 13 6 AOE 4 | . . . . 4 Classes Destroyed 10 | . 2 2 4 2 Worker 1 | . . . 1 . Builder 1 | . . . . 1 Hauler 1 | . . . . 1 Recycler 1 | . 1 . . . Mechanic 1 | . . . 1 . Operator 1 | . . . 1 . Swarmer 4 | . . 2 2 . Grunt 17 | . 3 . 8 6 Sentry 7 | . . . 3 4 Assembled 4 | . . 4 . . Best Kill Streak 3 | . 2 3 2 3 Combat Bots Only 3 | . 2 3 2 3 Max Kills in Single Turn 2 | . 1 1 2 2 Gunslinging 1 | . . . 1 . Exploded 1 | . . . . 1 Melee . | . . . . . Uniques/NPCs Destroyed . | . . . . . Combat | -11 -10 -10 -9 -9 -------- Run | Yrd Mat Min Mat Sto Hostile Shots Fired 286 | . 17 35 145 89 Missed 84 | . 4 11 37 32 Damage Taken 3080 | . 161 711 1366 842 Core 607 | . . 206 285 116 Absorbed by Shields . | . . . . . Core Remaining (%) 58 | 100 . 17 . . Volleys Fired 157 | . 13 19 90 35 Largest 2 | . 2 2 2 2 Hottest 96 | . 70 60 96 96 Shots Fired 272 | . 26 37 151 58 Gun 258 | . 26 37 151 44 Cannon . | . . . . . Launcher 14 | . . . . 14 Special . | . . . . . Kinetic 136 | . 13 19 99 5 Thermal 122 | . 13 18 52 39 Explosive 14 | . . . . 14 Electromagnetic . | . . . . . Robot Hit Streak 10 | . 8 4 10 7 Robot Miss Streak 4 | . 3 4 3 3 Penetration Max . | . . . . . Secondary Targets 3 | . . 1 1 1 Max Gunslinging Chain 1 | . . 1 1 1 Shots Hit Robots 182 | . 20 20 104 38 Core Hits 79 | . 9 10 35 25 Critical Kills 1 | . 1 . . . Critical Parts Destroyed 1 | . . . 1 . Critical Strikes 4 | . 1 . 3 . Burn 2 | . . . 2 . Destroy 2 | . 1 . 1 . Melee Attacks 2 | . . . . 2 Impact . | . . . . . Slashing . | . . . . . Piercing . | . . . . . Sneak Attacks 2 | . . . . 2 Combat Hostiles . | . . . . . Follow-up Attacks . | . . . . . Damage Inflicted 2183 | . 248 181 974 780 Guns 1752 | . 248 181 974 349 Cannons . | . . . . . Explosions 431 | . . . . 431 Melee . | . . . . . Ramming . | . . . . . Kinetic 852 | . 123 73 594 62 Thermal 900 | . 125 108 380 287 Explosive 431 | . . . . 431 Electromagnetic . | . . . . . Impact . | . . . . . Slashing . | . . . . . Piercing . | . . . . . Highest Corruption 6 | . 1 6 . . Average Corruption 4 | . 1 4 . . Corruption Purged . | . . . . . Corruption Blocked . | . . . . . Effects 12 | . 2 10 . . Message Errors 4 | . 1 3 . . Matter Fused 2 | . . 2 . . Energy Discharges 2 | . . 2 . . Data Loss (minor) 3 | . 1 2 . . Weapon Failures 1 | . . 1 . . Overload Shots . | . . . . . Overflow Damage . | . . . . . Projectiles . | . . . . . Explosions . | . . . . . Melee . | . . . . . Knockbacks . | . . . . . Impact . | . . . . . Kinetic . | . . . . . Secondary . | . . . . . Self-Inflicted Damage 88 | . . . . 88 Shots 3 | . . . . 3 Rammed . | . . . . . Targets Rammed . | . . . . . Kicked . | . . . . . Crushed . | . . . . . Highest Temperature 305 | . 75 20 305 132 Average Temperature 40 | . 30 14 56 30 Received Heat Transfer 954 | . 93 . 528 333 Effects 2 | . . . 2 . Interference 2 | . . . 2 . Siege Activations . | . . . . . Robots Corrupted . | . . . . . Combat Hostiles . | . . . . . Parts Fried . | . . . . . Impact Corruptions . | . . . . . Robots Melted . | . . . . . Combat Hostiles . | . . . . . Parts Melted 2 | . 1 . 1 . Heat Transferred 2372 | . 370 250 1067 685 Parts Sabotaged . | . . . . . Parts Stolen . | . . . . . Parts Stripped . | . . . . . Power Chain Reactions . | . . . . . Alert | -11 -10 -10 -9 -9 ------- Run | Yrd Mat Min Mat Sto Peak Influence 418 | . 76 55 210 418 Initial 88 | . . 29 17 88 Average 105 | . 39 33 96 224 Maximum Alert Level 2 | . . . 1 2 Low Security (%) 80 | 100 100 100 85 45 Level 1 18 | . . . 14 49 Level 2 1 | . . . . 5 Level 3 . | . . . . . Level 4 . | . . . . . Level 5 . | . . . . . High Security . | . . . . . Max Security . | . . . . . Squads Dispatched 3 | . . . 1 2 Investigation . | . . . . . Extermination . | . . . . . Reinforcement 3 | . . . 1 2 Assault . | . . . . . Garrison . | . . . . . Intercept . | . . . . . Searches Triggered . | . . . . . Construction Impeded . | . . . . . Haulers Reinforced . | . . . . . Active Scanning Responses . | . . . . . Cargo Convoy Interrupts . | . . . . . Stealth | -11 -10 -10 -9 -9 --------- Run | Yrd Mat Min Mat Sto Distress Signals 4 | . . . 3 1 Communications Jammed . | . . . . . Distress Signals . | . . . . . Times Spotted 49 | . 3 11 20 15 Peak Tracking Total 7 | . 2 7 5 3 Tactical Retreats 4 | . . 2 2 . Traps | -11 -10 -10 -9 -9 ------- Run | Yrd Mat Min Mat Sto Traps Triggered 1 | . 1 . . . Indirectly . | . . . . . Trap Hack Attempts . | . . . . . Triggered . | . . . . . Disarmed . | . . . . . Reprogrammed . | . . . . . Reused . | . . . . . Traps Extracted . | . . . . . Installed . | . . . . . Triggered . | . . . . . Machines | -11 -10 -10 -9 -9 ---------- Run | Yrd Mat Min Mat Sto Machines Disabled . | . . . . . Max in Single Turn . | . . . . . Machines Repaired . | . . . . . Machines Dismantled . | . . . . . Machines Sabotaged . | . . . . . Overloaded Fab Kills . | . . . . . Hacking | -11 -10 -10 -9 -9 --------- Run | Yrd Mat Min Mat Sto Machines Accessed . | . . . . . Terminals . | . . . . . Fabricators . | . . . . . Repair Stations . | . . . . . Recycling Units . | . . . . . Scanalyzers . | . . . . . Garrison Access . | . . . . . Total Hacks . | . . . . . Successful . | . . . . . Failed . | . . . . . Catastrophic . | . . . . . Database Lockouts . | . . . . . Manual . | . . . . . Terminals . | . . . . . Fabricators . | . . . . . Repair Stations . | . . . . . Recycling Units . | . . . . . Scanalyzers . | . . . . . Garrison Access . | . . . . . Terminal Hacks . | . . . . . Fabricator Hacks . | . . . . . Repair Station Hacks . | . . . . . Recycling Unit Hacks . | . . . . . Scanalyzer . | . . . . . Garrison Access Hacks . | . . . . . Unauthorized Hacks . | . . . . . Terminals . | . . . . . Fabricators . | . . . . . Repair Stations . | . . . . . Recycling Units . | . . . . . Scanalyzers . | . . . . . Garrison Access . | . . . . . Data Cores Recovered . | . . . . . Used . | . . . . . Hacking Detections . | . . . . . Full Trace Events . | . . . . . Feedback Events . | . . . . . Feedback Blocked . | . . . . . Robot Schematics Acquired . | . . . . . Robots Built . | . . . . . Authchips . | . . . . . Time . | . . . . . Total Robot Build Rating . | . . . . . Part Schematics Acquired . | . . . . . Parts Built . | . . . . . Authchips . | . . . . . Time . | . . . . . Total Part Build Rating . | . . . . . Parts Repaired . | . . . . . Time . | . . . . . Parts Recycled . | . . . . . Recycled Matter . | . . . . . Retrieved Matter . | . . . . . Retrieved Components . | . . . . . Parts Scanalyzed . | . . . . . Part Schematics Acquired . | . . . . . Parts Damaged . | . . . . . Bothacking | -11 -10 -10 -9 -9 ------------ Run | Yrd Mat Min Mat Sto Used RIF Installer . | . . . . . Robots Hacked 1 | . . . . 1 Non-combat 1 | . . . . 1 Combat . | . . . . . Robot Hacks Applied 2 | . . . . 2 parse_system 1 | . . . . 1 check_alert 1 | . . . . 1 Relay Couplers Released . | . . . . . Fabnet Peak Effective % . | . . . . . Robots Rewired . | . . . . . Allies Hacked . | . . . . . Hacks Repelled . | . . . . . Allies | -11 -10 -10 -9 -9 -------- Run | Yrd Mat Min Mat Sto Total Allies 10 | . . . . 10 Largest Group 10 | . . . . 10 Highest-Rated Group 88 | . . . . 88 Highest-Rated Ally 16 | . . . . 16 Total Orders 2 | . . . . 2 FOLLOW 1 | . . . . 1 GUARD 1 | . . . . 1 Ally Attacks 3 | . . . . 3 Total Damage 23 | . . . . 23 Kills . | . . . . . Allies Corrupted . | . . . . . Allies Melted . | . . . . . Intel | -11 -10 -10 -9 -9 ------- Run | Yrd Mat Min Mat Sto Robot Analysis Total . | . . . . . Derelict Logs Recovered . | . . . . . Drone Launches . | . . . . . Drone Recoveries . | . . . . . Exploration | -11 -10 -10 -9 -9 ------------- Run | Yrd Mat Min Mat Sto Turns Passed 1863 | 46 238 360 765 454 Spaces Moved 858 | 33 150 220 297 158 Core 41 | 7 . . . 34 Treads 63 | . . . . 63 Legs 741 | 26 150 220 284 61 Wheels 13 | . . . 13 . Hover . | . . . . . Flight . | . . . . . Fastest Speed 50 | 50 120 120 100 160 Average Speed 148 | 105 120 128 149 211 Slowest Speed 260 | 120 120 190 260 260 Overloaded Moves . | . . . . . Propulsion Burnouts . | . . . . . Robots Hopped . | . . . . . Cave-ins Triggered 1 | . . 1 . . Exploration Rate (%) 24 | 3 29 37 18 34 Regions Visited 4 Branch Regions 2 Pre-discovered Areas . | . . . . . Known Exits Taken . | . . . . . Unknown Exits Taken 4 | 1 1 1 1 . Scrap Searched 1 | . . 1 . . Spaces Dug . | . . . . . Terrain Destroyed 120 | . . . . 120 Melee . | . . . . . Projectile . | . . . . . AOE 120 | . . . . 120 Terrain Rammed . | . . . . . Walls Destroyed . | . . . . . Machines Disabled . | . . . . . Actions | -11 -10 -10 -9 -9 --------- Run | Yrd Mat Min Mat Sto Total 1197 | 44 182 264 488 219 Wait 76 | . 12 11 53 . Move 854 | 32 149 219 296 158 Hop . | . . . . . Pick Up 41 | 7 5 8 15 6 Fast Attach 6 | . 1 . 4 1 Attach 25 | 5 1 4 9 6 Detach . | . . . . . Swap 21 | . . 2 13 6 Drop 15 | . 1 1 8 5 Fire 157 | . 13 19 90 35 Melee 2 | . . . . 2 Ram . | . . . . . Kick . | . . . . . Crush . | . . . . . Escape Stasis . | . . . . . Rewire . | . . . . . Trap . | . . . . . Miscellaneous . | . . . . . Route ------- -11/Scrapyard -10/Materials -10/Mines -9/Materials -9/Storage History --------- Turn | Location | Event 3 | -11/Scrapyard | Discovered new exit (range 15) 47 | -11/Scrapyard | Entered Materials 261 | -10/Materials | Discovered new exit (range 16) 285 | -10/Materials | Entered Mines 305 | -10/Mines | Build established: Mutant 358 | -10/Mines | Assembled infested the area 363 | -10/Mines | Assisted by a Guerilla fighting off Assembled 377 | -10/Mines | Crushed by falling debris 377 | -10/Mines | Core integrity fell below 50% 408 | -10/Mines | Lost 3 parts (1p2w) 478 | -10/Mines | Core integrity fell below 20% 550 | -10/Mines | Received a Rocket Launcher from a helpful Derelict 600 | -10/Mines | Discovered new exit (range 10) 645 | -10/Mines | Entered Materials 645 | -9/Materials | Evolved 2 slots: Propulsion x2 799 | -9/Materials | Build established: Scavenger-Mutant 1126 | -9/Materials | Lost 3 parts (1p2w) 1156 | -9/Materials | Discovered new exit (range 14) 1174 | -9/Materials | Core integrity fell below 50% 1410 | -9/Materials | Entered Storage 1739 | -9/Storage | Core integrity fell below 20% 1811 | -9/Storage | Lost 5 parts (1p2n2w) 1836 | -9/Storage | Assisted by bots powering up and referring to "LRC-V3" 1864 | -9/Storage | Destroyed by S-10 Pest with Light Assault Rifle Last Messages --------------- 01810_ U-05 Engineer builds a Wall. 01810_ U-05 Engineer lays Concrete. 01814_ K-01 Serf collects debris. 01818_ U-05 Engineer lays Concrete. 01819_ U-05 Engineer builds a Wall. 01827_ U-05 Engineer lays Concrete. 01828_ U-05 Engineer builds a Wall. 01831_ Two rows of pristine grunt class robots stand immobile, all facing the entryway as if waiting for something. 01836_ One of them suddenly speaks: "Hello LRC-V3. What is your command?" You have a new controllable ally. Review and give out orders from the Allies menu (F5). Move into an ally to swap places with them. [Achievement: The More The Merrier] 01857_ C-30 ARC bursts open, deploying its payload. 01857_ S-10 Pest unfolds itself. 01860_ Acquired 41 matter. Map ----- +----------------------------------------------------+ | ???????????????????????#### # ##?? | | ???????????????????????# ## ### | | ???????????????????????# | | ???????????????????????+ ! | | ???????????????????????# = | | ???????????????????????# ######## | | ???????????????????????## ### #? | | ???????????????????????## # ####### | | ???????????????????????# # #! ==# | | ???????T"######+???????# # " = # | | ??????? # ???????# # =# | | ????? ? # ???????## / " # | | ????# # ######## # T#?== # | | ???## # ####???=# | | ???? " "" + ^ # ##????# | | ?????? "R"" # # ##????? | | ???????? """ s### ##### #/# ###???? | | ?????????? #?# #??# ! #???? | | ??????????##u##?# #??# #???? | | ?????????###s#### #??## ! #???? | | ?????????# # # ## #??## ![ #???? | | ?????????### #### #???# ! #???? | | ?????????# # # ## ##??# #???? | | ????????## # # ## #### "Y" #???? | | ???###### # # # + """ ##???? | | ???# ##@# [# ### #????? | | ???# """ # ### ############????? | | ???# """ + gs "+ ???? | | ???# """ # gg####### """ "???????? | | ???# ## #### # ""??????????? | | ???# ##g# # # ""??????????? | | ???#########g# #####? ??????????? | | ???????????#g## ?????+##?????????? | | ???????????#g#? ??? ??????????? | | ???????????#g#? ????????????? | | ?????????###g#? ??????????? | | ?????????# #? ######??????????? | | ????????#T #? ##???????????????? | | ????????# #? #????????????????? | | ????????# #? #????????????????? | | ????????#######??? #????????????????? | | ?????????????????? #????????????????? | | ????????????????????????????????????? | | ????????????????????????????????????? | | ????????????????????????????????????? | | ????????????????????????????????????? | | ????????????????????????????????????? | | ????????????????????????????????????? | | ????????????????????????????????????? | | ????????????????????????????????????? | +----------------------------------------------------+ Best States ------------- Heat Dissipation 28 Energy Generation 10 Energy Capacity 350 Matter Stores 300 Matter Capacity 300 Sight Range 16 Terrain Scan Density 10 Armor Coverage 150 Evasion (%) 55 Recoil Reduction 2 Item Schematics ----------------- None Robot Schematics ------------------ None Fabricated ------------ Nothing Alien Tech Used ----------------- None Achievements -------------- The More The Merrier Challenges ------------ None Game ------ Seed WardroneMachinePick Manual? 0 Play Time 00:38:59 Cumulative 4.4 hours Start 2024.12.30 @ 16:46:08 End 2024.12.30 @ 18:48:56 Sessions 1 Manual Loads 0 Difficulty Rogue Special Mode None Game No. 9 Rogue 9 Adventurer 0 Explorer 0 Win Type - Total 0 Types 0/0/0/0/0/0/0/0/0 Lore% 3 Gallery% 7 Achievement% 9 Wizard Run 0 Options --------- Layout 1 ASCII 0 Keyboard 0 Movement Mouse Keybinds 0 Fullscreen 1 Font 20/SmallcapsGlow Map View 50x35 Zoom Use 0% Tactical HUD 1 Map Filters NONE Filters NONE Steam 1 RUN: bb84cabe-36d4-4049-989a-b93d23d106dc